bitfinex/quotes_SOLUSD_20241223
["timestamp","ask_amount","ask_price","bid_price","bid_amount"]
[1734970230166,4.68874162,181.46,181.33,0.12549]
[1734970230368,60.2,181.47,181.33,0.12549]
[1734970230544,4.68874162,181.46,181.33,0.12549]
[1734970230735,23.776884,181.45,181.3,27.59522903]
[1734970231160,4.68874162,181.44,181.31,0.12549]
[1734970231566,20.0,181.41,181.31,0.12549]
[1734970231736,20.0,181.41,181.33,0.12549]
[1734970231936,60.2,181.49,181.35,23.902374]
[1734970232150,64.88874162,181.49,181.35,23.902374]
[1734970232463,4.68874162,181.48,181.35,23.902374]
[1734970232868,4.68874162,181.48,181.35,45.71585754]
[1734970233269,4.68874162,181.48,181.35,44.88910303]
[1734970234456,4.68874162,181.48,181.35,37.687274]
[1734970235339,24.68874162,181.48,181.34,1.5371]
[1734970238060,24.68874162,181.48,181.35,0.12549]
[1734970238263,20.0,181.46,181.35,0.12549]
[1734970238850,60.2,181.44,181.34,1.5371]
[1734970239048,20.0,181.41,181.34,1.5371]
[1734970239349,20.0,181.4,181.28,1.52]
[1734970239543,20.0,181.35,181.28,1.52]
[1734970239946,20.0,181.35,181.29,0.12549]
[1734970240132,20.0,181.36,181.29,0.12549]
[1734970242287,67.24148123,181.39,181.29,0.12549]
[1734970242288,20.0,181.39,181.29,44.88910303]
[1734970242438,27.04207498,181.45,181.31,20.98672903]
[1734970242767,27.04207498,181.45,181.29,44.76361303]
[1734970243059,4.68814787,181.44,181.3,0.12549]
[1734970243266,7.44384787,181.44,181.3,0.12549]
[1734970243766,20.0,181.41,181.29,0.12549]
[1734970245239,20.0,181.41,181.29,23.902374]
[1734970245465,20.0,181.42,181.29,23.902374]
[1734970245662,4.68814787,181.44,181.31,44.88910303]
[1734970245963,20.0,181.45,181.37,23.902374]
[1734970246356,7.04207498,181.49,181.37,44.88910303]
[1734970246540,7.04207498,181.49,181.39,0.12549]
[1734970246864,7.04207498,181.49,181.39,44.88910303]
[1734970247037,7.04207498,181.49,181.39,23.902374]
[1734970247241,7.04207498,181.49,181.38,23.776884]
[1734970247860,7.04207498,181.49,181.39,0.12549]
[1734970248047,7.04207498,181.49,181.41,0.12549]
[1734970249669,20.0,181.46,181.38,23.776884]
[1734970249877,20.0,181.46,181.39,0.12549]
[1734970250872,7.04207498,181.49,181.39,0.12549]
[1734970251070,7.04207498,181.49,181.41,8.32989]
[1734970251272,41.36183947,181.66,181.38,37.560084]
[1734970251273,7.04207498,181.58,181.47,44.88910303]
[1734970251477,60.2,181.65,181.5,20.98672903]
[1734970251684,60.2,181.65,181.53,1.5871]
[1734970251856,60.2,181.65,181.54,0.12549]
[1734970252047,4.68874162,181.64,181.54,0.12549]
[1734970252461,60.2,181.65,181.54,0.12549]
[1734970252771,65.75450145,181.68,181.54,23.902374]
[1734970252972,65.75450145,181.68,181.56,23.902374]
[1734970253365,7.04148123,181.67,181.56,0.12549]
[1734970256078,20.0,181.64,181.56,23.902374]
[1734970256288,20.0,181.64,181.56,0.12549]
[1734970257494,20.0,181.68,181.56,23.902374]
[1734970257653,20.0,181.67,181.56,23.902374]
[1734970257976,0.6835624,181.69,181.58,0.12549]
[1734970258186,0.6835624,181.69,181.6,0.12549]
[1734970258479,0.6835624,181.69,181.6,44.88910303]
[1734970258874,0.6835624,181.69,181.62,44.76361303]
[1734970259075,60.2,181.81,181.67,0.12549]
[1734970259274,22.042819,181.75,181.67,44.88910303]
[1734970259593,22.042819,181.75,181.69,0.12549]
[1734970259888,22.042819,181.75,181.74,0.12549]
[1734970260182,0.6835624,181.87,181.76,0.12549]
[1734970260360,0.6835624,181.87,181.79,20.98672903]
[1734970260674,0.6835624,181.87,181.81,0.12549]
[1734970260855,0.6835624,181.87,181.74,1.658]
[1734970261256,20.986729,181.86,181.75,44.88910303]
[1734970261456,20.986729,181.86,181.77,0.12549]
[1734970262564,20.986729,181.86,181.76,0.12549]
[1734970262900,20.0,181.83,181.76,0.12549]
[1734970263267,20.0,181.83,181.74,1.658]
[1734970263598,20.0,181.83,181.69,20.98672903]
[1734970263787,20.0,181.82,181.68,6.2772]
[1734970263972,20.0,181.77,181.67,1.6178]
[1734970264176,20.0,181.76,181.67,1.6178]
[1734970264914,103.976884,181.75,181.62,6.1197]
[1734970265062,20.0,181.75,181.64,20.98672903]
[1734970265262,20.0,181.75,181.65,20.98672903]
[1734970265463,20.0,181.76,181.67,0.12549]
[1734970266189,20.0,181.78,181.67,0.12549]
[1734970266974,80.2,181.78,181.63,34.10445057]
[1734970267184,20.0,181.74,181.63,34.10445057]
[1734970267591,20.0,181.74,181.64,34.10445057]
[1734970267983,20.0,181.78,181.65,0.12549]
[1734970268294,20.0,181.78,181.67,0.12549]
[1734970268684,20.0,181.78,181.67,23.902374]
[1734970269095,20.0,181.78,181.67,0.12549]
[1734970269310,20.0,181.78,181.65,23.776884]
[1734970270107,20.0,181.78,181.66,0.12549]
[1734970270605,20.0,181.78,181.66,34.22994057]
[1734970270814,20.0,181.78,181.66,0.12549]
[1734970271017,20.0,181.78,181.64,34.10445057]
[1734970271190,20.0,181.74,181.62,6.1197]
[1734970271402,20.0,181.7,181.58,13.7672]
[1734970271702,20.0,181.7,181.57,6.0772]
[1734970272514,23.776884,181.69,181.57,6.0772]
[1734970272719,20.0,181.66,181.57,6.0772]
[1734970273199,43.776884,181.65,181.55,1.5024]
[1734970273396,20.0,181.65,181.55,1.5024]
[1734970274192,20.0,181.65,181.52,54.15715057]
[1734970274387,23.776884,181.64,181.52,6.2809]
[1734970274704,20.0,181.62,181.52,6.2809]
[1734970275210,20.0,181.62,181.53,0.12549]
[1734970276109,20.0,181.61,181.49,1.6403]
[1734970276304,20.0,181.61,181.48,13.7748]
[1734970276809,20.0,181.6,181.49,0.12549]
[1734970277195,20.0,181.6,181.48,13.7748]
[1734970278400,20.0,181.59,181.48,13.7748]
[1734970279298,20.0,181.59,181.49,23.902374]
[1734970279712,4.68874162,181.63,181.51,23.902374]
[1734970280031,60.2,181.62,181.51,0.12549]
[1734970280241,60.2,181.62,181.48,13.7748]
[1734970280600,60.2,181.62,181.5,0.12549]
[1734970280929,20.0,181.59,181.5,34.22994057]
[1734970281131,20.0,181.59,181.5,0.12549]
[1734970281320,20.0,181.62,181.52,0.12549]
[1734970282336,4.68874162,181.69,181.58,0.12549]
[1734970283191,4.68874162,181.69,181.52,34.10445057]
[1734970283395,4.68874162,181.69,181.53,34.10445057]
[1734970283615,4.68874162,181.69,181.54,23.776884]
[1734970284003,4.68874162,181.69,181.55,0.12549]
[1734970284203,20.0,181.67,181.55,0.12549]
[1734970284422,4.68874162,181.69,181.59,0.12549]
[1734970284627,6.5391,181.72,181.59,34.22994057]
[1734970284813,6.5391,181.72,181.59,0.12549]
[1734970285017,7.04207498,181.71,181.59,0.12549]
[1734970285336,7.04207498,181.71,181.58,0.12549]
[1734970285836,20.0,181.68,181.58,0.12549]
[1734970287030,20.0,181.68,181.6,0.12549]
[1734970287234,7.04207498,181.71,181.6,58.00682457]
[1734970287395,1.504,181.75,181.65,0.12549]
[1734970287602,1.504,181.75,181.65,58.00682457]
[1734970287803,6.6108,181.77,181.65,58.00682457]
[1734970287995,7.04207498,181.78,181.65,58.00682457]
[1734970287996,7.04207498,181.78,181.68,23.902374]
[1734970288206,7.04207498,181.78,181.68,44.88673216]
[1734970288412,6.5733,181.82,181.7,44.88673216]
[1734970288810,7.04207498,181.84,181.75,0.12549]
[1734970288997,0.6835624,181.87,181.77,0.12549]
[1734970289224,0.6835624,181.87,181.77,44.88673216]
[1734970289543,0.6835624,181.87,181.77,23.902374]
[1734970289704,0.6835624,181.87,181.78,44.88673216]
[1734970290041,0.6835624,181.87,181.78,23.902374]
[1734970290337,0.6835624,181.87,181.78,57.96681759]
[1734970290627,0.6835624,181.87,181.82,23.902374]
[1734970290810,0.6835624,181.87,181.82,57.96681759]
[1734970291429,0.6835624,181.87,181.84,23.902374]
[1734970292196,0.6835624,181.87,181.81,23.776884]
[1734970292399,0.6835624,181.87,181.77,34.06444359]
[1734970293298,0.6835624,181.87,181.77,34.18993359]
[1734970294104,0.6835624,181.87,181.79,0.12549]
[1734970294694,0.6835624,181.87,181.78,23.776884]
[1734970294901,0.6835624,181.87,181.75,13.7551]
[1734970295832,0.6835624,181.87,181.76,0.12549]
[1734970296213,0.6835624,181.87,181.76,23.902374]
[1734970296540,0.6835624,181.87,181.72,0.82483284]
[1734970296541,0.6835624,181.87,181.73,34.06444359]
[1734970296831,0.6835624,181.87,181.73,34.18993359]
[1734970297444,0.6835624,181.87,181.72,0.82483284]
[1734970297445,80.2,181.86,181.7,40.65714359]
[1734970297611,20.0,181.83,181.68,34.06444359]
[1734970297798,20.0,181.83,181.69,34.06444359]
[1734970298000,20.0,181.83,181.75,34.18993359]
[1734970298195,0.6835624,181.87,181.78,34.18993359]
[1734970299034,0.6835624,181.87,181.76,23.776884]
[1734970299536,0.6835624,181.87,181.77,34.18993359]
[1734970299722,0.6835624,181.87,181.79,0.12549]
[1734970303648,0.6835624,181.87,181.81,0.12549]
[1734970303866,0.6835624,181.87,181.81,34.18993359]
[1734970304073,0.6835624,181.87,181.81,0.12549]
[1734970304274,0.6835624,181.87,181.83,0.12549]
[1734970306046,0.6835624,181.87,181.79,23.776884]
[1734970306467,0.6835624,181.87,181.78,0.82459162]
[1734970306846,0.6835624,181.87,181.78,0.12549]
[1734970307508,0.6835624,181.87,181.81,0.12549]
[1734970307675,0.6835624,181.87,181.83,0.12549]
[1734970308442,0.6835624,181.87,181.81,23.776884]
[1734970308650,0.6835624,181.87,181.8,23.776884]
[1734970309061,0.6835624,181.87,181.81,0.12549]
[1734970309883,0.6835624,181.87,181.82,0.12549]
[1734970312479,0.6835624,181.87,181.73,13.7566]
[1734970312669,20.0,181.86,181.73,13.7566]
[1734970313060,43.776884,181.84,181.7,13.7586]
[1734970313270,20.0,181.81,181.7,13.7586]
[1734970313558,20.0,181.81,181.67,34.71544892]
[1734970313759,20.0,181.81,181.67,13.7611]
[1734970314897,60.2,181.8,181.65,20.95434892]
[1734970315064,20.0,181.77,181.64,13.7633]
[1734970316291,20.0,181.77,181.65,0.12549]
[1734970316788,7.04148123,181.81,181.64,47.88115103]
[1734970316789,20.0,181.78,181.67,0.12549]
[1734970317291,7.04148123,181.81,181.69,0.12549]
[1734970317964,7.04148123,181.81,181.68,0.12549]
[1734970318364,20.0,181.78,181.68,0.12549]
[1734970318565,20.0,181.77,181.63,47.88195103]
[1734970318765,20.0,181.77,181.66,34.11785103]
[1734970318969,20.0,181.77,181.67,0.12549]
[1734970319167,20.0,181.78,181.67,0.12549]
[1734970319372,20.0,181.78,181.69,0.12549]
[1734970319912,20.0,181.78,181.65,57.89473503]
[1734970320810,20.0,181.78,181.68,0.12549]
[1734970321307,20.0,181.78,181.67,23.776884]
[1734970321607,20.0,181.7,181.6,34.11785103]
[1734970321792,20.0,181.7,181.62,34.11785103]
[1734970322098,20.0,181.7,181.63,0.12549]
[1734970322262,20.0,181.7,181.64,34.11785103]
[1734970322465,20.0,181.7,181.64,0.12549]
[1734970322666,6.3356,181.73,181.64,0.12549]
[1734970323174,20.0,181.7,181.59,47.88505103]
[1734970323470,20.0,181.7,181.62,34.11785103]
[1734970323675,20.0,181.7,181.6,0.8257644]
[1734970323676,20.0,181.7,181.63,34.24334103]
[1734970324072,1.6548,181.77,181.68,0.12549]
[1734970324266,1.6548,181.77,181.68,34.24334103]
[1734970324468,1.6548,181.77,181.68,23.902374]
[1734970325510,20.0,181.75,181.68,23.902374]
[1734970326575,6.2117,181.78,181.7,23.902374]
[1734970326770,1.6491,181.82,181.73,23.902374]
[1734970328199,20.0,181.8,181.73,23.902374]
[1734970329286,20.0,181.81,181.73,23.902374]
[1734970329894,20.0,181.81,181.74,23.776884]
[1734970330071,20.0,181.81,181.75,0.12549]
[1734970330918,20.0,181.81,181.73,23.776884]
[1734970331104,80.2,181.81,181.66,13.7618]
[1734970331412,80.2,181.81,181.7,34.11785103]
[1734970331600,1.6491,181.82,181.75,34.11785103]
[1734970331799,6.0927,181.84,181.78,34.24334103]
[1734970332008,0.6835624,181.87,181.8,0.12549]
[1734970332301,0.6835624,181.87,181.83,0.12549]
[1734970332492,0.6835624,181.87,181.83,58.02022503]
[1734970332702,0.6835624,181.87,181.86,23.902374]
[1734970332871,0.6835624,181.87,181.86,23.776884]
[1734970333076,0.6835624,181.87,181.81,57.89473503]
[1734970333814,0.6835624,181.87,181.82,0.12549]
[1734970334179,0.6835624,181.87,181.82,34.24334103]
[1734970334505,0.6835624,181.87,181.86,0.12549]
[1734970335021,0.6835624,181.87,181.85,23.776884]
[1734970335384,0.6835624,181.87,181.8,23.776884]
[1734970335601,0.6835624,181.87,181.8,57.89473503]
[1734970335922,0.6835624,181.87,181.81,0.12549]
[1734970336826,0.6835624,181.87,181.82,23.902374]
[1734970337017,0.6835624,181.87,181.82,0.12549]
[1734970337989,0.6835624,181.87,181.84,0.12549]
[1734970338182,0.6835624,181.87,181.84,23.902374]
[1734970339013,0.6835624,181.87,181.85,23.776884]
[1734970339429,0.6835624,181.87,181.86,0.12549]
[1734970339730,6.24e-05,181.87,181.86,58.60821086]
[1734970342440,6.24e-05,181.87,181.86,37.649174]
[1734970342738,6.24e-05,181.87,181.86,58.60821086]
[1734970342917,6.24e-05,181.87,181.86,37.649174]
[1734970343109,6.24e-05,181.87,181.83,34.70793686]
[1734970343313,6.24e-05,181.87,181.83,13.7489]
[1734970343729,6.24e-05,181.87,181.86,21.08452686]
[1734970344035,8.1582,182.0,181.93,21.08452686]
[1734970344203,8.1582,182.0,181.94,0.12549]
[1734970344541,7.6586,182.05,181.94,23.902374]
[1734970344737,7.6586,182.05,181.94,44.86141086]
[1734970344945,7.6586,182.05,181.94,58.60191086]
[1734970345308,7.6586,182.05,181.96,0.12549]
[1734970345515,6.0305,182.05,181.99,0.12549]
[1734970345802,0.6835624,182.06,181.99,0.12549]
[1734970347343,20.0,182.05,181.99,0.12549]
[1734970348503,0.6835624,182.06,182.01,0.12549]
[1734970348696,0.6835624,182.06,182.01,23.902374]
[1734970349553,0.6835624,182.06,182.05,21.08452686]
[1734970349847,0.6835624,182.06,182.05,44.86141086]
[1734970350752,0.6835624,182.06,182.05,58.59381086]
[1734970353443,0.6835624,182.06,182.05,13.7324]
[1734970354142,0.6835624,182.06,182.05,13.85789]
[1734970354337,0.6835624,182.06,182.05,13.7324]
[1734970354519,0.6835624,182.06,182.01,35.51760307]
[1734970354725,0.6835624,182.06,182.02,21.08452686]
[1734970355445,0.6835624,182.06,182.02,0.12549]
[1734970355647,0.6835624,182.06,182.01,34.69383686]
[1734970356558,0.6835624,182.06,182.0,20.95903686]
[1734970356709,0.6835624,182.06,181.98,13.7376]
[1734970357125,0.6835624,182.06,181.94,34.69923686]
[1734970357406,20.0,182.02,181.95,20.95903686]
[1734970357614,20.0,182.02,181.94,34.69923686]
[1734970358038,20.0,182.02,181.91,20.95903686]
[1734970358214,20.0,182.02,181.9,34.70213686]
[1734970358742,20.0,182.02,181.91,21.08452686]
[1734970359241,20.0,182.02,181.88,20.95903686]
[1734970359446,6.6541,182.05,181.84,20.95903686]
[1734970359447,20.0,181.98,181.84,20.95903686]
[1734970359636,20.0,181.98,181.83,34.70803686]
[1734970359832,20.0,181.98,181.86,0.12549]
[1734970360422,20.0,181.98,181.83,13.749]
[1734970360630,6.1426,181.96,181.8,34.71033686]
[1734970360832,20.0,181.93,181.77,34.71263686]
[1734970361045,20.0,181.92,181.77,34.71263686]
[1734970361542,23.776884,181.92,181.77,34.71263686]
[1734970361743,20.0,181.89,181.77,13.7536]
[1734970362239,20.0,181.89,181.78,0.12549]
[1734970362440,20.0,181.89,181.77,34.71263686]
[1734970362650,20.0,181.89,181.78,23.776884]
[1734970363124,20.0,181.89,181.77,23.902374]
[1734970363885,21.6223,181.87,181.73,13.7566]
[1734970364048,43.776884,181.86,181.71,20.95903686]
[1734970364215,20.0,181.82,181.7,20.95903686]
[1734970364413,20.0,181.82,181.75,20.95903686]
[1734970364607,1.6223,181.87,181.79,21.08452686]
[1734970364914,6.0625,181.91,181.8,21.08452686]
[1734970365217,6.0625,181.91,181.83,0.12549]
[1734970365718,6.0625,181.91,181.81,0.12549]
[1734970365925,6.0625,181.91,181.81,23.902374]
[1734970366250,20.0,181.88,181.81,0.12549]
[1734970367746,6.0625,181.91,181.83,23.902374]
[1734970368308,6.0625,181.91,181.83,44.86141086]
[1734970368713,1.5618,181.94,181.85,23.902374]
[1734970368933,20.0,181.93,181.85,23.902374]
[1734970369517,20.0,181.93,181.85,0.12549]
[1734970369748,20.0,181.93,181.84,0.12549]
[1734970369961,6.4789,181.96,181.87,0.12549]
[1734970370756,6.4789,181.96,181.82,13.7498]
[1734970370757,6.4789,181.95,181.83,0.12549]
[1734970371250,20.0,181.92,181.83,0.12549]
[1734970371543,20.0,181.92,181.83,23.902374]
[1734970372452,20.0,181.92,181.83,44.86141086]
[1734970372620,20.0,181.92,181.82,13.7498]
[1734970372621,20.0,181.92,181.81,23.776884]
[1734970372952,20.0,181.92,181.78,13.7522]
[1734970373310,20.0,181.92,181.77,20.95903686]
[1734970373522,20.0,181.92,181.74,34.71423686]
[1734970373523,20.0,181.88,181.74,34.71423686]
[1734970373820,20.0,181.87,181.74,13.7552]
[1734970374153,20.0,181.87,181.79,0.12549]
[1734970374336,20.0,181.88,181.79,0.12549]
[1734970374943,20.0,181.88,181.79,23.902374]
[1734970375649,20.0,181.88,181.77,23.776884]
[1734970376515,20.0,181.88,181.74,34.71433686]
[1734970376715,20.0,181.88,181.75,0.12549]
[1734970377144,20.0,181.84,181.75,0.12549]
[1734970377536,20.0,181.84,181.77,0.12549]
[1734970377728,20.0,181.84,181.77,21.08452686]
[1734970378037,20.0,181.84,181.79,0.12549]
[1734970378628,20.0,181.84,181.76,13.7544]
[1734970379135,20.0,181.84,181.78,0.12549]
[1734970379641,20.0,181.84,181.74,0.12549]
[1734970379825,20.0,181.84,181.73,34.71563686]
[1734970380224,20.0,181.84,181.73,13.7566]
[1734970380564,20.0,181.84,181.71,20.95903686]
[1734970380722,20.0,181.84,181.72,20.95903686]
[1734970380925,20.0,181.84,181.74,0.12549]
[1734970382053,20.0,181.84,181.74,23.776884]
[1734970382242,20.0,181.84,181.75,0.12549]
[1734970382647,20.0,181.84,181.73,13.7566]
[1734970382851,20.0,181.84,181.74,23.902374]
[1734970383155,6.4898,181.87,181.78,0.12549]
[1734970383357,6.4898,181.87,181.78,23.902374]
[1734970383922,6.4898,181.87,181.78,44.86141086]
[1734970384142,6.4898,181.87,181.8,23.902374]
[1734970384347,1.5653,181.89,181.82,23.902374]
[1734970385059,4.68874162,181.91,181.84,23.902374]
[1734970385556,4.68874162,181.91,181.84,0.12549]
[1734970386465,20.0,181.89,181.84,0.12549]
[1734970388064,20.0,181.89,181.84,23.902374]
[1734970388849,20.0,181.89,181.84,0.12549]
[1734970390484,20.0,181.89,181.79,13.7514]
[1734970390772,24.68874162,181.88,181.77,20.95903686]
[1734970391866,24.68874162,181.88,181.78,0.12549]
[1734970391867,4.68874162,181.88,181.78,0.12549]
[1734970392072,4.68874162,181.88,181.8,0.12549]
[1734970392376,4.68874162,181.88,181.79,13.7521]
[1734970393767,24.68874162,181.88,181.76,13.7543]
[1734970393975,24.68874162,181.88,181.7,34.71793686]
[1734970393976,25.412184,181.86,181.7,34.71793686]
[1734970394278,20.0,181.82,181.7,13.7589]
[1734970394481,80.2,181.81,181.67,13.761]
[1734970394694,20.0,181.77,181.67,13.761]
[1734970395480,20.0,181.77,181.68,0.12549]
[1734970395679,20.0,181.77,181.68,23.902374]
[1734970396772,1.6256,181.75,181.64,13.7633]
[1734970396976,20.0,181.73,181.64,13.7633]
[1734970397278,20.0,181.73,181.65,0.12549]
[1734970397792,20.0,181.73,181.64,13.7633]
[1734970397963,20.0,181.73,181.61,13.7655]
[1734970398877,20.0,181.71,181.58,20.95903686]
[1734970399355,20.0,181.7,181.57,13.7682]
[1734970399678,20.0,181.69,181.58,0.12549]
[1734970399862,20.0,181.7,181.57,13.7682]
[1734970400064,20.0,181.69,181.57,13.7682]
[1734970400676,20.0,181.65,181.53,34.73023686]
[1734970400860,20.0,181.65,181.53,13.7712]
[1734970401080,1.6114,181.64,181.51,20.95903686]
[1734970401268,20.0,181.63,181.49,13.7742]
[1734970401479,20.0,181.61,181.49,13.7742]
[1734970401788,20.0,181.61,181.51,20.95903686]
[1734970401985,1.6114,181.64,181.55,20.95903686]
[1734970402193,1.6114,181.64,181.56,13.89499]
[1734970402368,6.5446,181.68,181.58,21.08452686]
[1734970402765,6.5446,181.68,181.58,0.12549]
[1734970403178,6.5446,181.68,181.58,23.902374]
[1734970403373,6.5446,181.68,181.57,23.776884]
[1734970403773,20.0,181.65,181.58,0.12549]
[1734970404061,6.0668,181.73,181.64,0.12549]
[1734970404973,6.0668,181.73,181.64,21.08452686]
[1734970405286,6.0668,181.73,181.65,44.86141086]
[1734970405660,6.0668,181.73,181.65,23.902374]
[1734970405860,6.0668,181.73,181.66,23.776884]
[1734970406061,6.0668,181.73,181.67,0.12549]
[1734970406969,6.0668,181.73,181.65,13.7627]
[1734970407297,6.0668,181.73,181.66,0.12549]
[1734970407478,6.0668,181.73,181.66,23.902374]
[1734970409177,6.0668,181.73,181.62,20.95903686]
[1734970409387,1.5005,181.82,181.72,20.95903686]
[1734970409583,1.5005,181.82,181.75,0.12549]
[1734970410385,1.5005,181.82,181.7,20.95903686]
[1734970410595,1.5005,181.82,181.69,23.776884]
[1734970410798,1.5005,181.82,181.7,0.12549]
[1734970411173,20.0,181.81,181.7,0.12549]
[1734970411388,20.0,181.79,181.7,0.12549]
[1734970415703,20.0,181.79,181.72,0.12549]
[1734970416096,7.44478123,181.82,181.72,0.12549]
[1734970416097,1.5005,181.82,181.72,0.12549]
[1734970416498,1.5005,181.82,181.72,21.08452686]
[1734970416700,1.5005,181.82,181.74,0.12549]
[1734970417013,6.4585,181.84,181.78,0.12549]
[1734970417600,22.625537,181.88,181.8,23.902374]
[1734970418224,20.0,181.85,181.8,0.12549]
[1734970419500,20.0,181.85,181.76,13.7542]
[1734970419908,20.0,181.85,181.77,0.12549]
[1734970420923,20.0,181.84,181.72,13.7574]
[1734970421099,25.94428123,181.84,181.72,13.7574]
[1734970421283,25.94428123,181.84,181.73,0.12549]
[1734970421613,20.0,181.84,181.73,0.12549]
[1734970422629,20.0,181.84,181.75,23.902374]
[1734970422922,22.625537,181.88,181.75,44.86141086]
[1734970423122,1.6665,181.88,181.77,23.902374]
[1734970424032,20.0,181.86,181.77,23.902374]
[1734970424233,20.0,181.84,181.75,23.776884]
[1734970424730,25.78594162,181.84,181.76,0.12549]
[1734970424931,25.78594162,181.84,181.74,13.7559]
[1734970425153,25.78594162,181.84,181.75,0.12549]
[1734970425314,20.0,181.85,181.75,21.08452686]
[1734970425503,20.0,181.86,181.75,0.12549]
[1734970426104,25.78594162,181.86,181.75,23.902374]
[1734970426900,25.78594162,181.86,181.77,23.902374]
[1734970429045,25.78594162,181.86,181.79,23.902374]
[1734970429046,20.0,181.86,181.79,23.902374]
[1734970429331,20.0,181.86,181.79,0.12549]
[1734970429716,20.0,181.86,181.77,0.12549]
[1734970430047,20.0,181.84,181.73,13.7565]
[1734970430204,20.0,181.84,181.74,0.12549]
[1734970430544,1.6665,181.88,181.78,41.08452686]
[1734970430697,1.6665,181.88,181.78,20.12549]
[1734970431133,1.6665,181.88,181.79,23.776884]
[1734970431332,1.6665,181.88,181.8,0.12549]
[1734970433223,1.6665,181.88,181.79,13.7517]
[1734970433737,1.6665,181.88,181.8,0.12549]
[1734970434545,1.6665,181.88,181.8,23.902374]
[1734970434751,1.6665,181.88,181.79,13.7517]
[1734970435635,1.6665,181.88,181.8,0.12549]
[1734970438326,1.6665,181.88,181.79,23.902374]
[1734970439634,1.6665,181.88,181.81,0.12549]
[1734970440226,6.1236,181.89,181.81,23.902374]
[1734970441729,6.1236,181.89,181.81,0.12549]
[1734970442770,6.1236,181.89,181.83,20.0]
[1734970445042,66.3236,181.89,181.71,6.302]
[1734970445244,66.14487498,181.88,181.75,13.7551]
[1734970445628,66.14487498,181.88,181.76,0.12549]
[1734970445964,5.94487498,181.88,181.79,0.12549]
[1734970446164,6.1236,181.89,181.81,0.12549]
[1734970446774,6.1236,181.89,181.83,0.12549]
[1734970446972,6.1236,181.89,181.82,20.0]
[1734970447597,6.1236,181.89,181.8,0.12549]
[1734970447876,6.1236,181.89,181.79,13.752]
[1734970448077,5.94487498,181.88,181.79,13.752]
[1734970448440,60.2,181.86,181.76,13.7541]
[1734970448846,66.14487498,181.86,181.76,13.7541]
[1734970449144,5.94487498,181.86,181.76,13.7541]
[1734970449680,1.5454,181.84,181.73,13.7566]
[1734970449847,1.5454,181.84,181.74,0.12549]
[1734970450872,1.5454,181.84,181.77,0.12549]
[1734970451075,1.5454,181.84,181.75,0.12549]
[1734970453881,1.5454,181.84,181.74,20.0]
[1734970454385,6.1236,181.89,181.79,20.12549]
[1734970454577,6.1236,181.89,181.78,0.82495147]
[1734970454884,6.1236,181.89,181.74,20.0]
[1734970454885,65.98594162,181.88,181.74,20.0]
[1734970455088,65.98594162,181.88,181.76,20.0]
[1734970455258,65.98594162,181.88,181.77,0.12549]
[1734970455757,5.78594162,181.88,181.79,0.12549]
[1734970456161,5.78594162,181.88,181.79,20.12549]
[1734970456759,5.78594162,181.88,181.79,0.12549]
[1734970458708,5.78594162,181.88,181.83,0.12549]
[1734970459156,5.78594162,181.88,181.78,20.0]
[1734970459658,5.78594162,181.88,181.79,0.12549]
[1734970460071,5.78594162,181.88,181.79,20.12549]
[1734970460995,65.98594162,181.88,181.79,20.0]
[1734970461300,23.776884,181.87,181.7,13.10282625]
[1734970461600,65.98594162,181.86,181.7,13.10282625]
[1734970461773,29.892284,181.82,181.64,0.82523233]
[1734970461981,29.892284,181.82,181.65,13.10282625]
[1734970462165,23.776884,181.8,181.64,13.10282625]
[1734970462365,23.776884,181.8,181.63,19.67392625]